bitfinex/quotes_ETHUSD_20240729
["timestamp","ask_amount","ask_price","bid_price","bid_amount"]
[1722238129692,2.2715,3379.1,3379.0,2.45]
[1722238130368,1.075,3379.3,3379.0,2.45]
[1722238130369,3.3322,3379.3,3379.0,2.45]
[1722238131179,2.2572,3379.3,3379.0,2.45]
[1722238131389,2.36708,3379.7,3379.0,4.81755]
[1722238131390,2.4377,3379.6,3379.0,4.81755]
[1722238131598,0.55,3379.5,3379.0,2.45]
[1722238131793,1.075,3379.4,3379.0,2.45]
[1722238131993,0.55,3379.5,3379.0,2.45]
[1722238131994,1.075,3379.2,3379.0,2.45]
[1722238133293,0.55,3379.5,3379.0,2.45]
[1722238133294,1.075,3379.4,3379.0,2.45]
[1722238134781,1.075,3379.4,3379.0,2.35]
[1722238135756,1.13420198,3379.4,3379.0,2.35]
[1722238138811,1.075,3379.4,3379.0,2.35]
[1722238141270,0.55,3379.5,3379.0,2.35]
[1722238141662,0.55,3379.6,3379.1,2.36744]
[1722238141867,1.075,3379.8,3379.0,4.71753]
[1722238141868,0.55,3379.7,3379.0,4.71753]
[1722238142116,2.3195,3379.9,3379.3,2.36734]
[1722238142323,13.44187,3380.0,3379.3,2.36734]
[1722238142324,0.55,3379.8,3379.3,2.36734]
[1722238142548,0.55,3379.9,3379.3,2.36734]
[1722238143215,0.55,3379.9,3379.2,2.36736]
[1722238143526,0.55,3379.9,3379.3,2.36734]
[1722238143743,10.0,3380.0,3379.5,2.36716]
[1722238144107,11.075,3380.0,3379.6,2.36713]
[1722238144301,11.075,3380.0,3379.4,2.36723]
[1722238145008,11.075,3380.0,3379.1,4.80787]
[1722238145326,11.075,3380.0,3379.3,2.3673]
[1722238145635,13.44186,3380.0,3379.3,2.3673]
[1722238145842,1.075,3379.8,3379.1,4.80787]
[1722238146538,3.44202,3379.8,3379.1,4.80787]
[1722238146839,1.13420198,3379.8,3379.2,2.36741]
[1722238147041,1.075,3379.8,3379.2,2.36741]
[1722238150329,3.50120198,3379.8,3379.1,2.4404]
[1722238150776,3.50120198,3379.8,3379.1,4.80789]
[1722238151273,2.36726,3379.5,3379.0,7.43]
[1722238151427,1.075,3379.4,3379.0,7.43]
[1722238152734,3.3988,3379.6,3379.0,7.43]
[1722238152935,15.14602934,3380.0,3379.2,2.36738]
[1722238152936,5.28909,3379.9,3379.2,2.36738]
[1722238153257,3.91412082,3379.9,3379.8,3.0]
[1722238153468,2.3721,3379.9,3379.8,3.0]
[1722238153662,3.91457877,3379.9,3379.8,3.0]
[1722238154028,6.28150877,3379.9,3379.8,3.0]
[1722238154225,2.3721,3379.9,3379.8,3.0]
[1722238155685,4.73903,3379.9,3379.8,3.0]
[1722238155886,6.19306824,3379.9,3379.8,3.0]
[1722238156964,2.36703,3379.8,3379.0,7.43]
[1722238157130,1.075,3379.3,3379.0,7.43]
[1722238157459,1.075,3379.3,3378.6,2.36781]
[1722238157827,1.075,3379.3,3378.8,2.36764]
[1722238158363,1.075,3379.5,3378.9,2.36758]
[1722238158738,1.075,3379.5,3379.0,2.36755]
[1722238159066,1.075,3379.5,3378.8,2.36764]
[1722238159562,1.075,3379.5,3378.6,2.36781]
[1722238159563,1.075,3379.5,3378.9,2.36763]
[1722238159765,1.54259559,3379.6,3379.5,1.925]
[1722238159932,5.53548437,3379.6,3379.5,1.925]
[1722238160465,3.99214,3379.6,3379.5,1.925]
[1722238160632,5.53561599,3379.6,3379.5,1.925]
[1722238161460,3.16847599,3379.6,3379.5,1.925]
[1722238162433,1.625,3379.6,3379.5,1.925]
[1722238162764,3.16876117,3379.6,3379.5,1.925]
[1722238163161,5.53594219,3379.6,3378.9,9.79761]
[1722238163364,1.54379219,3379.5,3378.9,9.79761]
[1722238164441,2.61879219,3379.4,3378.9,9.79761]
[1722238164657,5.05089219,3379.4,3378.9,7.43]
[1722238164874,5.05089219,3379.4,3378.9,9.79763]
[1722238165436,2.4321,3379.4,3379.0,2.36755]
[1722238165636,1.54379219,3379.5,3379.1,2.36748]
[1722238165937,1.54379219,3379.6,3379.2,2.36736]
[1722238166135,2.61879219,3379.6,3379.2,2.36736]
[1722238166469,2.61879219,3379.6,3379.4,3.0]
[1722238167434,1.54379219,3379.6,3379.4,3.0]
[1722238169035,1.54379219,3379.6,3379.2,2.36736]
[1722238169477,1.075,3379.8,3379.2,2.36736]
[1722238169679,1.54549302,3379.6,3379.2,2.36736]
[1722238169995,1.075,3379.8,3379.3,2.36731]
[1722238170296,1.54548429,3379.6,3379.3,2.36731]
[1722238170437,1.54548429,3379.6,3379.2,2.36736]
[1722238170637,1.54548429,3379.5,3379.3,2.36734]
[1722238171648,1.54548429,3379.5,3379.2,2.36736]
[1722238171845,14.64366,3380.0,3378.9,7.43]
[1722238171846,10.0,3380.0,3379.6,2.3416]
[1722238172168,10.0,3380.0,3379.9,2.36693]
[1722238172351,10.0,3380.0,3379.9,4.73386]
[1722238172855,10.0,3380.0,3379.9,5.80886]
[1722238173163,10.0,3380.0,3379.9,2.36693]
[1722238175605,10.0,3380.0,3379.7,2.36706]
[1722238175893,10.0,3380.0,3379.9,2.36693]
[1722238177601,10.0,3380.0,3379.7,2.36706]
[1722238177894,10.0,3380.0,3379.8,2.36697]
[1722238178753,10.0,3380.0,3379.6,2.36712]
[1722238179173,11.54432334,3380.0,3379.6,2.36712]
[1722238179453,10.0,3380.0,3379.6,2.36712]
[1722238179956,10.0,3380.0,3379.7,2.36706]
[1722238180673,10.0,3380.0,3379.5,3.82172571]
[1722238180674,10.0,3380.0,3379.8,2.367]
[1722238183656,10.0,3380.0,3379.6,2.36709]
[1722238183896,12.3331,3380.0,3379.6,2.36709]
[1722238185278,12.3331,3380.0,3379.7,2.36707]
[1722238185756,10.0,3380.0,3379.9,2.36693]
[1722238186602,10.0,3380.0,3379.5,1.45451571]
[1722238186811,13.573,3380.0,3379.5,1.45451571]
[1722238186993,1.075,3379.8,3379.5,1.45451571]
[1722238188730,1.075,3379.6,3379.5,1.45451571]
[1722238188881,8.24958198,3379.6,3379.5,1.45451571]
[1722238189082,10.65333588,3379.6,3379.5,1.45451571]
[1722238189712,10.5941339,3379.6,3379.5,1.45451571]
[1722238190320,8.74038,3379.6,3379.5,1.45451571]
[1722238190487,9.99008719,3379.6,3379.5,1.45451571]
[1722238191193,8.91508719,3379.6,3379.5,1.45451571]
[1722238191930,6.03407388,3379.6,3379.5,1.45451571]
[1722238192084,1.54452951,3379.6,3379.5,1.45451571]
[1722238192285,1.54452951,3379.7,3379.5,1.45451571]
[1722238192481,1.54452951,3379.8,3379.5,1.45451571]
[1722238193117,1.54452951,3379.7,3379.5,1.45451571]
[1722238193552,4.48584667,3379.9,3379.5,1.45451571]
[1722238193553,1.54452951,3379.8,3379.5,1.45451571]
[1722238194100,6.03037618,3379.9,3379.5,1.45451571]
[1722238194943,3.88021481,3379.9,3379.5,3.82168571]
[1722238195143,10.0,3380.0,3379.5,3.82168571]
[1722238195144,11.54461481,3380.0,3379.5,3.82168571]
[1722238195463,1.54461481,3379.9,3379.5,1.45451571]
[1722238195749,13.16689129,3380.0,3379.5,1.45451571]
[1722238195899,13.16689129,3380.0,3379.5,3.82172571]
[1722238197429,13.16689129,3380.0,3379.5,1.45451571]
[1722238197635,1.54461481,3379.9,3379.5,1.45451571]
[1722238198133,1.54573206,3379.9,3379.5,3.82167571]
[1722238198304,1.54573206,3379.9,3379.5,1.45451571]
[1722238198505,1.54594571,3379.9,3379.5,1.45451571]
[1722238199007,1.54594571,3379.9,3379.3,2.36734]
[1722238199208,4.02724571,3379.8,3379.1,2.36748]
[1722238200302,6.39424571,3379.8,3379.1,2.36748]
[1722238200520,1.54594571,3379.7,3379.1,2.36748]
[1722238200715,1.54594571,3379.7,3378.9,9.79761]
[1722238200920,6.22779604,3379.6,3378.9,9.79761]
[1722238201119,1.54574604,3379.5,3378.9,9.79761]
[1722238202926,3.86064604,3379.6,3378.9,9.79761]
[1722238203129,3.86064604,3379.6,3379.1,2.36748]
[1722238203338,3.86064604,3379.6,3379.5,1.0]
[1722238203529,1.54574604,3379.7,3379.5,1.0]
[1722238203844,3.85794604,3379.9,3379.5,1.0]
[1722238204509,1.54574604,3379.8,3379.5,1.0]
[1722238206540,1.54645779,3379.8,3379.5,1.0]
[1722238206741,1.54645779,3379.8,3379.3,2.36731]
[1722238206943,1.54645779,3379.7,3379.2,2.3674]
[1722238207143,1.5464961,3379.7,3379.2,2.3674]
[1722238207345,1.5464961,3379.6,3378.9,7.43]
[1722238207545,2.2583,3379.5,3378.9,9.79761]
[1722238207755,1.5464961,3379.3,3378.9,7.43]
[1722238208822,1.5464961,3379.3,3378.9,9.79763]
[1722238209025,1.5464961,3379.4,3378.9,9.79763]
[1722238209524,3.8047961,3379.5,3379.3,1.0]
[1722238209728,2.2583,3379.5,3379.3,1.0]
[1722238210152,1.54622729,3379.5,3379.3,1.0]
[1722238211925,1.54622729,3379.6,3379.5,2.36721]
[1722238212125,11.54622729,3380.0,3379.7,2.36702]
[1722238212344,10.0,3380.0,3379.7,2.36702]
[1722238214471,11.54672473,3380.0,3379.5,2.36721]
[1722238214766,11.54670852,3380.0,3379.5,2.36721]
[1722238216226,10.0,3380.0,3379.5,2.36721]
[1722238216424,11.54647328,3380.0,3379.5,2.36721]
[1722238216655,10.54647328,3380.0,3379.6,2.36714]
[1722238216862,10.5464147,3380.0,3379.6,2.36714]
[1722238218531,10.5464147,3380.0,3379.1,2.3459]
[1722238218757,11.2803,3380.0,3379.4,2.36724]
[1722238219064,12.82735985,3380.0,3379.4,2.36724]
[1722238219431,12.82739883,3380.0,3379.4,2.36724]
[1722238219632,12.82739883,3380.0,3379.5,2.36719]
[1722238220130,1.54709883,3379.9,3379.5,2.36719]
[1722238220763,12.82739883,3380.0,3379.5,2.36719]
[1722238221147,1.54709883,3379.9,3379.4,2.36725]
[1722238222172,1.54709883,3379.9,3379.5,2.36716]
[1722238222552,11.2803,3380.0,3379.5,2.36716]
[1722238222755,11.2803,3380.0,3379.4,2.36725]
[1722238222756,1.54738291,3379.9,3379.6,2.36714]
[1722238223067,1.54738291,3379.9,3379.7,2.36706]
[1722238223377,10.54738291,3380.0,3379.2,2.36739]
[1722238223568,9.0,3380.0,3379.6,4.73834]
[1722238223949,9.0,3380.0,3379.7,2.36707]
[1722238225565,9.0,3380.0,3379.9,7.10466]
[1722238225769,9.0,3380.0,3379.9,10.10466]
[1722238226135,9.0,3380.0,3379.9,12.47159]
[1722238226556,9.0,3380.0,3379.9,10.10466]
[1722238226867,9.0,3380.0,3379.9,7.73386]
[1722238227033,9.0,3380.0,3379.9,4.73386]
[1722238231735,9.0,3380.0,3379.9,7.73386]
[1722238231933,9.0,3380.0,3379.9,10.10079]
[1722238232360,9.0,3380.0,3379.9,12.52389]
[1722238232755,9.0,3380.0,3379.9,10.15696]
[1722238233271,9.0,3380.0,3379.9,12.52389]
[1722238235071,9.0,3380.0,3379.9,10.15696]
[1722238235270,9.0,3380.0,3379.9,7.73386]
[1722238235662,9.0,3380.0,3379.9,2.36693]
[1722238237377,9.0,3380.0,3379.7,2.36702]
[1722238237571,9.0,3380.0,3379.4,5.36721]
[1722238237870,2.4407,3379.9,3379.4,5.36721]
[1722238238071,2.4407,3379.9,3379.3,9.79733]
[1722238238378,4.80763,3379.9,3379.3,7.43]
[1722238238543,3.98724204,3379.9,3379.3,9.79734]
[1722238238745,2.36708,3379.7,3379.3,7.43]
[1722238238935,0.05920198,3379.6,3379.3,7.43]
[1722238239161,2.36728,3379.4,3379.3,7.43]
[1722238239770,3.91382204,3379.4,3379.3,7.43]
[1722238240873,2.36728,3379.4,3379.3,7.43]
[1722238241257,3.91436481,3379.4,3379.3,7.43]
[1722238241455,1.54708481,3379.4,3379.3,7.43]
[1722238241655,3.87048481,3379.5,3379.3,7.43]
[1722238242044,2.3234,3379.5,3379.3,7.43]
[1722238242245,3.87048481,3379.5,3379.3,7.43]
[1722238242480,3.83798481,3379.5,3378.8,22.1777]
[1722238242779,3.83798481,3379.5,3379.3,0.002014]
[1722238243175,2.2909,3379.5,3379.3,0.002014]
[1722238244274,1.54708481,3379.7,3379.3,0.002014]
[1722238244480,1.54651711,3379.8,3379.3,0.002014]
[1722238244779,1.54657056,3379.7,3379.3,0.002014]
[1722238244980,3.68928718,3379.9,3379.3,0.002014]
[1722238245165,2.8689335,3379.9,3379.3,0.002014]
[1722238245565,2.494,3379.7,3379.3,0.002014]
[1722238246352,6.53406035,3379.7,3379.3,0.002014]
[1722238247744,2.494,3379.7,3379.3,0.002014]
[1722238248172,4.86108,3379.7,3379.3,0.002014]
[1722238248367,3.91391703,3379.6,3379.3,0.002014]
[1722238248680,6.23573703,3379.5,3379.3,0.002014]
[1722238249090,4.68901,3379.5,3379.3,0.002014]
[1722238249655,6.23573703,3379.5,3379.3,0.002014]
[1722238249850,4.68901,3379.5,3379.3,0.002014]
[1722238250347,3.91400703,3379.4,3379.3,0.002014]
[1722238250545,6.34048901,3379.4,3379.3,0.002014]
[1722238250796,7.22036198,3379.4,3379.3,0.002014]
[1722238251000,7.77036198,3379.4,3379.3,0.002014]
[1722238251688,9.62592522,3379.4,3379.3,0.002014]
[1722238251983,11.10408149,3379.4,3379.3,0.002014]
[1722238252183,9.24851825,3379.4,3379.3,0.002014]
[1722238252977,11.61579825,3379.4,3379.3,0.002014]
[1722238253570,13.47136149,3379.4,3379.3,0.002014]
[1722238253785,11.61579825,3379.4,3379.3,0.002014]
[1722238254285,19.56307825,3379.4,3379.3,0.002014]
[1722238254888,12.40191825,3379.4,3378.4,7.43]
[1722238255061,7.10802,3378.5,3378.4,7.43]
[1722238255261,7.10802,3378.5,3377.2,21.84879]
[1722238255262,2.36822,3378.1,3377.6,7.43]
[1722238255572,2.36822,3378.1,3377.3,12.38]
[1722238255573,2.42747198,3378.0,3377.3,12.38]
[1722238255770,2.36834,3377.9,3377.2,7.43]
[1722238256372,2.36848,3377.7,3377.2,7.43]
[1722238256585,2.36855,3377.6,3377.2,7.43]
[1722238257511,4.6607,3377.8,3377.2,7.43]
[1722238257674,2.2923,3377.8,3377.2,9.79882]
[1722238258267,2.2923,3377.8,3377.2,7.43]
[1722238258664,2.2923,3377.8,3377.2,9.79877]
[1722238259385,2.36859,3377.6,3377.2,7.43]
[1722238260275,2.36868,3377.4,3377.2,7.43]
[1722238260480,2.36868,3377.4,3376.8,7.43]
[1722238260783,2.36877,3377.3,3376.8,7.43]
[1722238261321,2.36883,3377.2,3376.5,2.3693]
[1722238263190,2.36868,3377.4,3376.6,2.36924]
[1722238263406,2.36883,3377.2,3376.4,9.79933]
[1722238264095,2.36876,3377.3,3376.5,2.36929]
[1722238264304,2.4334,3377.1,3376.4,7.43]
[1722238264505,4.8023,3377.1,3376.4,7.43]
[1722238264676,0.05920198,3377.0,3376.4,7.43]
[1722238264880,2.3691,3376.8,3376.4,7.43]
[1722238265283,2.36922,3376.7,3376.4,7.43]
[1722238265707,0.772146,3376.8,3376.4,7.43]
[1722238266014,3.141276,3376.8,3376.4,7.43]
[1722238266219,3.20047798,3376.8,3376.4,7.43]
[1722238266415,3.20047798,3376.8,3376.1,2.36959]
[1722238266620,2.42838198,3376.7,3376.0,7.5781801]
[1722238266828,2.36925,3376.6,3376.0,7.5781801]
[1722238267116,2.42838198,3376.7,3376.0,7.5781801]
[1722238267117,2.36933,3376.5,3376.0,7.5781801]
[1722238267325,2.7442328,3376.7,3376.0,0.1481801]
[1722238267531,2.36905,3376.9,3376.1,2.36959]
[1722238267683,0.55,3376.8,3376.1,2.36959]
[1722238268698,2.91911,3376.8,3376.1,2.36959]
[1722238269016,0.55,3377.0,3376.1,2.36959]
[1722238269218,0.55,3377.0,3376.3,2.36941]
[1722238269385,1.085221,3377.0,3376.3,2.36941]
[1722238270088,2.4334,3377.1,3376.3,2.36945]
[1722238270288,2.4334,3377.1,3376.4,2.36932]
[1722238270692,2.2503,3377.5,3376.2,2.36951]
[1722238270884,2.2503,3377.5,3376.9,2.36898]
[1722238271092,2.2503,3377.5,3376.7,2.36917]
[1722238271314,2.712182,3377.5,3376.7,2.36917]
[1722238271515,2.36876,3377.3,3376.6,7.43]
[1722238271815,2.36882,3377.2,3376.6,7.43]
[1722238272021,0.05920198,3377.1,3376.6,7.43]
[1722238272314,2.36882,3377.2,3376.6,7.43]
[1722238272536,2.36889,3377.1,3376.6,7.43]
[1722238272719,2.842661,3377.1,3376.6,7.43]
[1722238272919,2.42817198,3377.0,3376.6,7.43]
[1722238273702,2.36897,3377.0,3376.6,7.43]
[1722238274519,2.842671,3377.1,3376.6,7.43]
[1722238275219,2.842671,3377.1,3376.4,2.36933]
[1722238275420,2.36896,3377.0,3376.2,9.79948]
[1722238275619,2.36896,3377.0,3376.3,2.36945]
[1722238276608,2.36888,3377.2,3376.4,2.36938]
[1722238276810,2.36888,3377.2,3376.5,2.36931]
[1722238277088,2.36876,3377.3,3376.5,2.36926]
[1722238277309,0.55,3377.2,3376.6,2.36924]
[1722238277576,2.2503,3377.5,3376.8,2.36904]
[1722238277689,2.36854,3377.6,3376.9,2.36903]
[1722238277897,0.55,3377.5,3376.9,2.36903]
[1722238278302,0.55,3377.5,3377.0,2.36891]
[1722238278502,0.55,3377.6,3377.0,2.36891]
[1722238278809,2.605321,3377.7,3377.1,2.36887]
[1722238278810,0.236841,3377.7,3377.1,2.36887]
[1722238279014,2.2951,3377.9,3377.3,2.36875]
[1722238279194,2.2951,3377.9,3377.1,4.73771]
[1722238279391,4.66343,3377.9,3377.1,2.36884]
[1722238279925,4.66343,3377.9,3377.2,2.36882]
[1722238280089,5.624592,3377.9,3377.2,2.36882]
[1722238281894,3.256262,3377.9,3377.3,2.36874]
[1722238283019,3.256262,3377.9,3377.4,2.36862]
[1722238283223,2.2951,3377.9,3377.4,2.36862]
[1722238284033,2.2951,3377.9,3377.2,4.73758]
[1722238284217,2.2951,3377.9,3377.2,2.36877]
[1722238285254,2.2951,3377.9,3377.4,2.36868]
[1722238286599,2.2951,3377.9,3377.2,2.36877]
[1722238286800,5.366587,3377.9,3377.2,2.36877]
[1722238287200,5.366587,3377.9,3377.3,2.36874]
[1722238287201,2.998257,3377.9,3377.3,2.36874]
[1722238287414,2.998257,3377.9,3376.7,2.36914]
[1722238287613,2.2951,3377.9,3377.3,2.36874]
[1722238288831,2.2951,3377.9,3377.4,2.36866]
[1722238290942,2.2951,3377.9,3377.2,2.36876]
[1722238291301,2.2951,3377.9,3377.3,2.3687]
[1722238291501,2.2951,3377.9,3377.2,2.36876]
[1722238291502,2.74663228,3377.9,3377.2,2.36876]
[1722238292039,2.74663228,3377.9,3377.3,2.36875]
[1722238292808,5.11497228,3377.9,3377.2,2.36881]
[1722238294042,3.91036495,3378.5,3377.3,4.71752]
[1722238294043,2.4365,3378.5,3377.3,4.71752]
[1722238294211,2.4365,3378.5,3377.3,2.3488]
[1722238294526,2.58,3379.2,3378.3,2.36799]
[1722238294527,2.4215,3379.0,3378.3,2.36799]
[1722238294842,0.63334514,3378.9,3378.4,2.36797]
[1722238295532,2.4215,3379.0,3378.5,2.36787]
[1722238296613,2.4215,3379.0,3378.0,7.43]
[1722238296908,2.36767,3378.9,3378.0,7.43]
[1722238297142,2.36783,3378.7,3378.0,9.79826]
[1722238297312,2.9023072,3378.6,3378.0,7.43]
[1722238297511,2.9812,3378.5,3378.0,7.43]
[1722238297747,5.40831198,3378.5,3378.0,7.43]
[1722238298246,2.9812,3378.5,3378.0,7.43]
[1722238299027,2.9812,3378.5,3377.9,2.36833]
[1722238299228,3.72415336,3378.5,3377.9,2.36833]
[1722238299747,3.72415336,3378.5,3377.7,12.38]
[1722238299966,2.36798,3378.4,3377.7,12.38]
[1722238300253,6.09206336,3378.5,3377.7,14.74841]
[1722238300254,7.63814978,3378.5,3377.7,14.74841]
[1722238300552,6.09206336,3378.5,3377.8,2.3684]
[1722238300718,1.0540397,3378.4,3377.8,2.3684]
[1722238301330,5.34911,3378.5,3377.8,2.3684]
[1722238302049,2.36829,3378.0,3377.6,7.43]
[1722238302218,2.36829,3378.0,3377.2,7.43]
[1722238302219,3.9149437,3378.0,3377.2,7.43]
[1722238302571,2.36845,3377.8,3377.2,7.43]
[1722238303129,4.75507,3377.7,3377.2,7.43]
[1722238303434,2.3866,3377.7,3377.2,7.43]
[1722238303642,2.3866,3377.7,3377.2,9.79882]
[1722238304457,2.3866,3377.7,3377.2,7.43]
[1722238305918,3.07173821,3377.7,3376.9,2.36901]
[1722238306119,2.3686,3377.6,3376.9,2.36901]
[1722238308069,3.07173821,3377.7,3376.9,2.36901]
[1722238308275,2.3866,3377.7,3376.9,2.36901]
[1722238308567,2.3866,3377.7,3377.2,2.36882]
[1722238310152,2.3866,3377.7,3377.0,2.36896]
[1722238310756,4.75513,3377.7,3377.0,2.36891]
[1722238314171,6.30299089,3377.7,3377.0,2.36891]
[1722238316959,6.30287795,3377.7,3377.0,2.36891]
[1722238317360,7.4107285,3377.7,3377.0,2.36891]
[1722238318452,2.36854,3377.6,3376.8,6.79904]
[1722238318787,2.36854,3377.6,3376.9,2.36899]
[1722238319148,1.54774795,3377.6,3377.0,2.3689]
[1722238319383,6.30282795,3377.7,3377.1,2.36889]
[1722238320147,1.5481862,3377.6,3377.1,2.36889]
[1722238320677,1.54839481,3377.6,3377.1,2.36889]
[1722238321049,3.93499481,3377.7,3377.1,2.36889]
[1722238321249,1.54839481,3377.6,3377.1,2.36889]
[1722238322383,2.3866,3377.7,3377.1,2.36889]
[1722238322679,1.54896261,3377.6,3377.1,2.36889]
[1722238322992,1.54901576,3377.6,3377.1,2.36889]
[1722238324192,1.54901576,3377.5,3377.1,2.36889]
[1722238325249,1.54901576,3377.6,3377.4,2.36868]
[1722238325465,1.54901576,3377.6,3377.5,2.36861]
[1722238325679,1.85881891,3377.9,3377.5,2.36861]
[1722238325680,1.55003081,3377.9,3377.5,2.36861]
[1722238325994,3.85073081,3378.0,3377.5,2.36861]
[1722238326150,1.55003081,3378.0,3377.5,2.36861]
[1722238326351,1.55003081,3378.0,3377.5,2.36856]
[1722238326969,1.55003081,3378.0,3377.1,2.36887]
[1722238327148,1.55003081,3377.7,3377.3,2.36875]
[1722238327349,1.55003081,3377.9,3377.4,2.36868]
[1722238327578,1.05003081,3377.8,3377.5,2.36861]
[1722238328256,1.86003697,3378.2,3377.5,2.36861]
[1722238328477,4.16073697,3378.3,3377.5,2.36861]
[1722238328676,2.3007,3378.3,3377.5,2.36861]
[1722238328864,4.16112374,3378.3,3377.7,2.36847]
[1722238329064,6.52918374,3378.3,3377.5,2.36856]
[1722238329374,6.52918374,3378.3,3377.6,2.36853]
[1722238330266,2.3007,3378.3,3377.7,2.36846]
[1722238330456,2.3007,3378.3,3377.7,2.36842]
[1722238330783,2.3007,3378.3,3377.8,2.36839]
[1722238330982,2.3007,3378.3,3377.9,2.36833]
[1722238333356,2.3007,3378.3,3377.9,2.36826]
[1722238334557,1.54976624,3378.2,3377.9,2.36826]
[1722238335193,2.3007,3378.3,3377.9,2.36826]
[1722238335494,1.5497175,3378.2,3377.9,2.36826]
[1722238335687,1.5497175,3378.1,3377.9,2.36826]
[1722238336280,1.5497175,3378.2,3377.9,2.36826]
[1722238336475,1.5497175,3378.1,3377.9,2.36826]
[1722238336993,1.5497175,3378.2,3378.0,2.36825]
[1722238337358,3.8504175,3378.3,3378.1,2.36819]
[1722238337888,3.8504175,3378.3,3377.9,2.36826]
[1722238338093,1.5497175,3378.2,3377.9,2.36826]
[1722238338466,1.5486055,3378.2,3377.9,2.36826]
[1722238338681,3.8493055,3378.3,3378.0,2.36826]
[1722238339191,3.8493055,3378.3,3378.0,2.36825]
[1722238339495,1.5486055,3378.3,3378.2,2.36812]
[1722238339796,1.8583266,3378.7,3378.4,2.36793]
[1722238339797,1.5486055,3378.7,3378.4,2.36793]
[1722238339992,1.5486055,3378.7,3378.5,2.36791]
[1722238340190,1.5486055,3378.8,3378.6,2.36784]
[1722238340389,1.5486055,3378.8,3378.6,2.36783]
[1722238340597,3.8961055,3379.0,3378.6,2.36783]
[1722238340890,1.5486055,3378.9,3378.5,2.36791]
[1722238341381,2.3475,3379.0,3378.5,2.36791]
[1722238341571,1.54898008,3378.9,3378.5,2.36791]
[1722238341988,1.54872291,3378.9,3378.5,2.36791]
[1722238343362,3.89622291,3379.0,3378.5,2.36791]
[1722238343792,1.54872291,3378.9,3378.5,2.36791]
[1722238344460,3.89622291,3379.0,3378.5,2.36791]
[1722238344657,2.3475,3379.0,3378.5,2.36791]
[1722238344953,3.89617713,3379.0,3378.5,2.36791]
[1722238345262,3.89617713,3379.0,3378.6,2.36783]
[1722238345680,3.89617713,3379.0,3378.3,2.36802]
[1722238345882,3.89617713,3379.0,3378.5,2.36791]
[1722238346564,3.89617713,3379.0,3378.6,2.36784]
[1722238347089,3.89617713,3379.0,3378.3,2.36803]
[1722238347257,2.3475,3379.0,3378.3,2.36803]
[1722238347790,2.3475,3379.0,3378.5,2.36784]
[1722238348677,2.3475,3379.0,3378.6,2.36779]
[1722238349575,2.3475,3379.0,3378.5,2.36784]
[1722238351904,2.3475,3379.0,3378.3,2.36804]
[1722238352109,4.39301294,3379.0,3378.4,2.36796]
[1722238353226,1.075,3378.8,3378.2,2.36807]
[1722238353438,8.30828237,3379.0,3378.3,2.36805]
[1722238353925,1.54769943,3378.9,3378.3,2.36805]
[1722238354271,8.30824213,3379.0,3378.3,2.36805]
[1722238354679,1.06756721,3378.9,3378.3,2.36805]
[1722238354984,1.075,3378.4,3378.1,2.36814]
[1722238355681,1.075,3378.6,3378.1,2.36814]
[1722238356678,1.075,3378.6,3377.9,6.79833]
[1722238356679,1.075,3378.6,3378.2,2.36812]
[1722238357337,4.80776,3378.0,3377.9,4.43]
[1722238357472,2.36847,3377.7,3377.2,4.43]
[1722238357673,1.075,3377.5,3376.9,2.36903]
[1722238359186,2.42767198,3377.7,3376.9,5.36903]
[1722238359699,2.36855,3377.6,3376.9,5.36903]
[1722238360108,3.9160037,3377.8,3377.0,2.36896]
[1722238360425,2.36835,3377.9,3377.0,5.36896]
[1722238360426,0.05920198,3377.7,3377.0,5.36896]
[1722238360621,2.42772198,3377.7,3377.0,2.36896]
[1722238360820,2.36852,3377.7,3377.0,2.36896]
[1722238361323,2.36854,3377.6,3377.0,2.36896]
[1722238362494,2.3821,3377.4,3376.8,4.43]
[1722238363423,2.3821,3377.4,3376.8,6.79906]
[1722238364996,4.75079,3377.4,3376.8,6.79906]
[1722238367332,2.3821,3377.4,3376.8,6.79906]
[1722238367531,2.3821,3377.4,3376.8,2.36906]
[1722238368310,2.3821,3377.4,3376.9,2.36903]
[1722238368506,3.84309849,3377.7,3377.1,2.36888]
[1722238368706,2.582,3378.2,3377.3,2.36869]
[1722238368707,1.54769849,3377.8,3377.3,2.36869]
[1722238368918,3.84309849,3378.0,3377.5,2.36861]
[1722238369125,2.2954,3378.0,3377.5,2.36861]
[1722238369534,0.05920198,3377.9,3376.8,2.36908]
[1722238369835,0.05920198,3377.9,3376.7,2.36916]
[1722238369836,2.4985,3377.3,3376.7,2.36916]
[1722238371030,4.86725,3377.3,3376.7,2.36916]
[1722238371623,2.4985,3377.3,3376.7,2.36916]
[1722238371820,3.87855042,3377.6,3376.6,2.3692]
[1722238371996,1.54785042,3378.0,3377.5,2.36861]
[1722238372196,1.54785042,3378.2,3377.5,2.36861]
[1722238372437,4.69875,3378.3,3377.6,2.36853]
[1722238372733,4.69875,3378.3,3377.5,2.3686]
[1722238372734,2.36812,3378.2,3377.5,2.3686]
[1722238372897,2.99278004,3378.2,3377.5,2.3686]
[1722238373101,0.62466004,3378.2,3377.4,2.36863]
[1722238373433,0.62466004,3378.2,3377.2,2.4989]
[1722238373434,2.3307,3378.3,3377.6,2.36849]
[1722238373631,2.3307,3378.3,3377.8,2.36834]
[1722238373841,2.3307,3378.3,3377.7,2.36847]
[1722238374031,2.3307,3378.3,3377.9,2.36833]
[1722238374740,2.3307,3378.3,3377.7,2.36842]